Cogmind - Beta 14 --- EXPLORER MODE // 2024.08.15 @ 20:14:42 // Winter2019/RPGLIKE Player: Gnomed! Result: Self-destructed Performance ------------- Evolutions (9) 4500 Regions Visited (16) 3200 Robots Destroyed (167) 835 Value Destroyed (11532) 11532 Prototype IDs (6) 120 Alien Tech Used (0) 0 Bonus (4296) 4296 TOTAL SCORE: 24483 Bonus ------- High Alert Combat Kills 1249 Follower Combat Kills 147 Entered DSFs 500 Network Hubs Disabled 800 Built Enhanced Grunts 300 A7 Reached Mainframe 300 Met R17 at Cetus 500 Destroyed MAIN.C Guards 500 Cogmind --------- Core Integrity 12796/20000 Matter 3280/4600 Energy 10025/10025 System Corruption 18% Temperature Cool (0) Movement Flying (39) Location -1/Command Parts ------- > --- POWER (1) -------- Light Ion Engine > --- PROPULSION (6) --- Impulse Thruster Array Impulse Thruster Array Impulse Thruster Array > --- UTILITY (13) ----- Core Analyzer Improved Armor Integrity Analyzer Improved Weapon Cycler Centrium Medium Armor Plating > --- WEAPON (6) ------- Nova Cannon Nova Cannon Nova Cannon Nova Cannon (fused) Nova Cannon Nova Cannon > --- INVENTORY (107) -- Quantum Reactor Light Quantum Reactor Centrium Leg Centrium Leg Centrium Leg Compact Wheel Compact Wheel Compact Wheel Flight Unit VTOL Module VTOL Module Improved Flight Unit Authchip [R/Combat] Plasma Rifle Compact Ion Cannon Compact Linear Accelerator Compact Linear Accelerator Compact Linear Accelerator Compact Linear Accelerator Improved Datajack Improved Datajack Remote Datajack Improved Remote Datajack Advanced Remote Datajack Peak State ------------ > --- POWER ------------ Light Ion Engine > --- PROPULSION ------- Impulse Thruster Array Impulse Thruster Array Impulse Thruster Array > --- UTILITY ---------- Core Analyzer Improved Armor Integrity Analyzer Improved Weapon Cycler Centrium Medium Armor Plating > --- WEAPON ----------- Nova Cannon Nova Cannon Nova Cannon Nova Cannon Nova Cannon Nova Cannon > --- INVENTORY -------- Quantum Reactor Light Quantum Reactor Centrium Leg Centrium Leg Centrium Leg Compact Wheel Compact Wheel Compact Wheel Flight Unit VTOL Module VTOL Module Improved Flight Unit Authchip [R/Combat] Plasma Rifle Compact Ion Cannon Compact Linear Accelerator Compact Linear Accelerator Compact Linear Accelerator Compact Linear Accelerator Improved Datajack Improved Datajack Remote Datajack Improved Remote Datajack Advanced Remote Datajack [Rating: 136] Favorites ----------- Power Fusion Reactor Engine Light Ion Engine Reactor Fusion Reactor Propulsion VTOL Module Treads Centrium Heavy Treads Leg Centrium Leg Wheel Compact Wheel Hover Unit Gravmag System Flight Unit VTOL Module Utility Reactive Plating Device Improved Weapon Cycler Processor Core Analyzer Protection Reactive Plating Weapon Variable Charge Gun Energy Gun Variable Charge Gun Energy Cannon Nova Cannon Ballistic Gun Assault Rifle Ballistic Cannon Magnetic Acceleration Cannon Special Weapon Remote Datajack Build | -11 -10 -9 -8 -7 -6 -5 -4 -4 -4 -4 -4 -3 -2 -2 -1 -1 ------- Run | Yrd Mat Mat Mat Fac Fac Fac Fac Ext Cet Arc Hub Res Res DSF Acc Com Slots Evolved 22 | 22 . . . . . . . . . . . . . . . . Power . | . . . . . . . . . . . . . . . . . Propulsion 5 | 5 . . . . . . . . . . . . . . . . Utility 12 | 12 . . . . . . . . . . . . . . . . Weapon 5 | 5 . . . . . . . . . . . . . . . . Parts Attached 69 | 3 5 14 . 3 5 5 . 4 1 . 3 2 1 . 12 11 Power 4 | . . 1 . . 1 1 . . . . . . . . . 1 Engine 3 | . . 1 . . 1 . . . . . . . . . . 1 Core . | . . . . . . . . . . . . . . . . . Reactor 1 | . . . . . . 1 . . . . . . . . . . Propulsion 21 | . 2 4 . . . . . . . . 2 1 . . 10 2 Treads 1 | . . . . . . . . . . . . . . . 1 . Leg 1 | . . . . . . . . . . . . . . . 1 . Wheel 1 | . . . . . . . . . . . . . . . 1 . Hover 2 | . . . . . . . . . . . . . . . 2 . Flight 16 | . 2 4 . . . . . . . . 2 1 . . 5 2 Utility 16 | . . 7 . 3 1 3 . . . . . . . . . 2 Device 6 | . . . . 3 . 3 . . . . . . . . . . Storage . | . . . . . . . . . . . . . . . . . Processor 2 | . . . . . 1 . . . . . . . . . . 1 Hackware . | . . . . . . . . . . . . . . . . . Protection 8 | . . 7 . . . . . . . . . . . . . 1 Artifact . | . . . . . . . . . . . . . . . . . Weapon 28 | 3 3 2 . . 3 1 . 4 1 . 1 1 1 . 2 6 Energy Gun 7 | 1 1 . . . . . . 4 1 . . . . . . . Energy Cannon 11 | . . . . . . . . . . . 1 1 1 . 2 6 Ballistic Gun 5 | 2 2 . . . 1 . . . . . . . . . . . Ballistic Cannon 4 | . . 2 . . 1 1 . . . . . . . . . . Launcher . | . . . . . . . . . . . . . . . . . Special Weapon 1 | . . . . . 1 . . . . . . . . . . . Impact Weapon . | . . . . . . . . . . . . . . . . . Slashing Weapon . | . . . . . . . . . . . . . . . . . Piercing Weapon . | . . . . . . . . . . . . . . . . . Special Melee Weapon . | . . . . . . . . . . . . . . . . . Unidentified Prototypes 6 | . . 1 . . . 1 . . 1 . 1 . . . 1 1 Corrupted Parts 1 | . . . . . . . . . 1 . . . . . . . System Corruption 3 | . . . . . . . . . 3 . . . . . . . Parts Lost 19 | . . . . . . . . . . . 5 2 . 1 1 10 Power . | . . . . . . . . . . . . . . . . . Propulsion 6 | . . . . . . . . . . . 1 . . 1 . 4 Utility 10 | . . . . . . . . . . . 4 2 . . 1 3 Weapon 3 | . . . . . . . . . . . . . . . . 3 Highest Loss Streak 9 | . . . . . . . . . . . 2 1 . 2 1 9 To Critical Strikes 2 | . . . . . . . . . . . 1 . . . . 1 Average Slot Usage (%) 77 | . 11 44 73 79 89 91 100 99 100 100 94 79 76 69 58 49 Engine 1 | . . 1 3 3 3 2 . . . . . . . . . 2 Reactor 1 | . . . . . . . 3 3 3 3 3 3 3 3 3 . Flight 18 | . . 18 23 23 23 23 23 23 23 23 22 23 23 19 11 10 Device 12 | . . . . 6 11 13 19 19 19 19 19 19 19 15 15 4 Processor 3 | . . . . . 2 3 3 3 3 3 3 3 3 3 3 5 Protection 15 | . . 7 26 26 26 26 26 26 26 26 22 9 3 3 . 1 Energy Gun 9 | . 3 3 3 3 3 3 3 8 16 19 18 15 15 15 15 1 Energy Cannon 5 | . . . . . . . . . . . 2 3 7 7 7 20 Ballistic Gun 2 | . 7 7 7 7 9 7 7 2 . . . . . . . . Ballistic Cannon 3 | . . 4 7 7 6 8 11 9 5 3 . . . . . . Peak Build Rating 136 | 3 5 33 33 43 61 76 76 95 100 100 112 108 110 118 129 136 Average Rating 91 | 1 3 16 33 39 55 60 76 86 98 100 105 103 108 110 116 122 On Entrance 69 | . 3 5 33 33 43 56 76 76 95 100 100 98 106 110 118 129 Naked Turns 1 | . 1 . . . . . . . . . . . . . . . Heaviest Build 107 | 6 6 66 66 73 93 97 97 107 107 104 104 71 75 75 75 86 Greatest Support 375 | 298 303 320 320 320 320 320 320 320 320 320 326 329 329 329 375 343 Greatest Overweight (x) . | . . . . . . . . . . . . . . . . . Average Overweight (x) . | . . . . . . . . . . . . . . . . . Largest Inventory Capacity 107 | 107 107 107 107 107 107 107 107 107 107 107 107 107 107 107 107 107 Average Capacity 107 | 107 107 107 107 107 107 107 107 107 107 107 107 107 107 107 107 107 Most Carried 39 | . . . 2 2 4 4 4 8 7 7 9 10 11 34 39 30 Average Carried 12 | . . . 1 2 3 4 4 5 6 7 8 9 10 22 31 25 Final Capacity 107 | 107 107 107 107 107 107 107 107 107 107 107 107 107 107 107 107 107 Final Carried 34 | . . . 2 2 4 4 4 5 7 7 9 10 11 34 29 24 Class Distribution -------------------- 71% | Wizard-Scout 18% | Wizard-Executioner 5% | Wizard-Sprinter 4% | Wizard-Gunner Dominant Class ---------------- Wizard-Gunner | -10/Materials Wizard-Gunner | -9/Materials Wizard-Sprinter | -8/Materials Wizard-Sprinter | -7/Factory Wizard-Scout | -6/Factory Wizard-Scout | -5/Factory Wizard-Scout | -4/Factory Wizard-Scout | -4/Extension Wizard-Scout | -4/Cetus Wizard-Scout | -4/Archives Wizard-Scout | -4/Hub_04(d) Wizard-Scout | -3/Research Wizard-Scout | -2/Research Wizard-Scout | -2/DSF Wizard-Scout | -1/Access Wizard-Executioner | -1/Command Resources | -11 -10 -9 -8 -7 -6 -5 -4 -4 -4 -4 -4 -3 -2 -2 -1 -1 ----------- Run | Yrd Mat Mat Mat Fac Fac Fac Fac Ext Cet Arc Hub Res Res DSF Acc Com Matter Collected 5639 | 220 67 . . 152 741 512 224 664 275 . 935 105 143 608 747 246 Remotely . | . . . . . . . . . . . . . . . . . Salvage Created 9977 | . 111 . . 128 452 320 105 778 229 . 2592 222 . 425 1220 3395 Parts 416 | . 6 . . 6 32 28 2 40 18 6 100 4 . 9 39 126 Haulers Intercepted 1 | . . . . . . . . . . . 1 . . . . . Recyclers Shooed 2 | . . . . . . . 1 . . . . . . . 1 . Parts Field Recycled . | . . . . . . . . . . . . . . . . . Retrieved Matter . | . . . . . . . . . . . . . . . . . Parts Self-Destructed . | . . . . . . . . . . . . . . . . . Prevented . | . . . . . . . . . . . . . . . . . Kills | -11 -10 -9 -8 -7 -6 -5 -4 -4 -4 -4 -4 -3 -2 -2 -1 -1 ------- Run | Yrd Mat Mat Mat Fac Fac Fac Fac Ext Cet Arc Hub Res Res DSF Acc Com Combat Hostiles Destroyed 135 | . 3 . . 4 11 9 3 12 7 3 36 3 . 3 11 30 Guns 75 | . 3 . . . 8 3 2 9 5 2 29 3 . 2 7 2 Cannons 44 | . . . . 4 2 6 1 2 . . 4 . . 1 2 22 AOE 3 | . . . . . 1 . . 1 . . 1 . . . . . Classes Destroyed 19 | . 2 . . 1 6 1 1 2 . . 2 . . . . 4 Worker 9 | . . . . . 1 2 . . . . 1 . . . 1 4 Builder 5 | . . . . . 1 . . . . . 4 . . . . . Hauler 1 | . . . . . . . . . . . 1 . . . . . Recycler 3 | . . . . . 1 . . . . . 1 . . . 1 . Operator 3 | . . . . . . . . 1 . . 1 . . . 1 . Watcher 11 | . . . . . 1 1 . 2 1 . 4 . . . . 2 Swarmer 11 | . 2 . . . 3 2 . . . . 3 . . . . 1 Grunt 32 | . 1 . . 2 3 1 . 4 . . 16 . . . 3 2 Brawler 5 | . . . . . 1 . . . . . 1 . . . 1 2 Duelist 1 | . . . . . . . . . . . 1 . . . . . Protector 1 | . . . . . . . . . . . . . . . . 1 Sentry 29 | . . . . 2 3 3 1 4 . 3 6 1 . . 1 5 Hunter 18 | . . . . . . 2 1 . . . 2 2 . 2 5 4 Programmer 9 | . . . . . . . . 2 . . . . . . . 7 Heavy 2 | . . . . . . . 1 . . . . . . 1 . . Behemoth 8 | . . . . . 1 1 . 2 . . 1 . . . 1 2 Cetus Guard 7 | . . . . . . . . . 7 . . . . . . . M Guard 1 | . . . . . . . . . . . . . . . . 1 Lightning 6 | . . . . . . . . . . . 6 . . . . . Combat Programmer 2 | . . . . . . . . . . . . . . . . 2 Striker 1 | . . . . . . . . . . . . . . . . 1 Executioner 1 | . . . . . . . . . . . . . . . . 1 Alpha 7 1 | . . . . . . . . . . . . . . . . 1 Best Kill Streak 19 | . 2 . . 4 9 6 3 11 5 3 19 2 . 2 4 9 Combat Bots Only 18 | . 2 . . 4 6 4 3 8 4 3 18 2 . 2 4 9 Max Kills in Single Turn 4 | . 1 . . 1 1 2 1 1 1 1 4 1 . 1 1 3 Gunslinging 1 | . . . . . . . . . . . 1 . . . . . Exploded 1 | . . . . . 1 . . 1 . . 1 . . . . . Melee . | . . . . . . . . . . . . . . . . . Uniques/NPCs Destroyed . | . . . . . . . . . . . . . . . . . Combat | -11 -10 -9 -8 -7 -6 -5 -4 -4 -4 -4 -4 -3 -2 -2 -1 -1 -------- Run | Yrd Mat Mat Mat Fac Fac Fac Fac Ext Cet Arc Hub Res Res DSF Acc Com Hostile Shots Fired 1395 | . 9 4 11 47 101 57 54 80 22 4 301 50 1 16 217 421 Missed 569 | . 1 2 8 24 45 23 19 36 10 1 109 32 . 4 79 176 Damage Taken 9783 | . 40 28 16 27 1189 217 225 403 83 20 2255 111 6 196 1042 3925 Core 7204 | . 32 22 10 9 1110 123 138 230 44 15 1327 77 4 144 833 3086 Absorbed by Shields 2048 | . . . . 74 176 144 140 164 79 15 536 56 4 48 532 80 Redirected to Core 4905 | . 24 22 10 6 109 115 131 206 37 15 1105 44 4 108 531 2438 Ignored by Resistances 11204 | . 49 19 24 149 422 481 481 709 207 45 2489 190 13 314 1709 3903 Core Remaining (%) 93 | 100 99 99 99 99 94 93 . . . . 84 84 . 83 . . Volleys Fired 312 | . 4 . . 7 33 28 13 30 15 3 50 6 . 6 30 87 Largest 6 | . 3 . . 5 6 6 6 6 5 5 6 6 . 6 6 6 Hottest 920 | . 80 . . 150 198 221 221 675 830 830 920 808 . 838 845 770 Shots Fired 1636 | . 10 . . 35 179 147 66 138 62 15 262 31 . 36 175 480 Gun 859 | . 10 . . 21 118 84 27 90 62 15 228 24 . 24 115 41 Cannon 777 | . . . . 14 61 63 39 48 . . 34 7 . 12 60 439 Launcher . | . . . . . . . . . . . . . . . . . Special . | . . . . . . . . . . . . . . . . . Kinetic 444 | . 8 . . 28 146 119 63 80 . . . . . . . . Thermal 1103 | . . . . . . . . 42 62 15 262 31 . 36 175 480 Explosive . | . . . . . . . . . . . . . . . . . Electromagnetic 89 | . 2 . . 7 33 28 3 16 . . . . . . . . Robot Hit Streak 57 | . 8 . . 17 38 40 41 39 26 32 38 37 . 13 20 57 Robot Miss Streak 3 | . . . . 1 3 2 1 1 1 . 3 1 . 1 1 2 Penetration Max . | . . . . . . . . . . . . . . . . . Secondary Targets 19 | . . . . . . . . 2 3 1 13 . . . . . Max Gunslinging Chain 2 | . . . . . . . . 1 1 1 2 . . . . . Shots Hit Robots 1069 | . 8 . . 32 86 88 53 102 46 14 177 12 . 21 111 319 Core Hits 444 | . 3 . . 11 39 40 20 35 17 6 100 8 . 7 38 120 Critical Kills 6 | . . . . . . . . . . . . . . . 1 5 Critical Parts Destroyed . | . . . . . . . . . . . . . . . . . Critical Strikes 26 | . . . . . 3 5 1 2 . . 5 . . . 5 5 Burn 9 | . . . . . . . . . . . 5 . . . 4 . Meltdown 6 | . . . . . . . . . . . . . . . 1 5 Blast 10 | . . . . . 3 4 1 2 . . . . . . . . Corrupt 1 | . . . . . . 1 . . . . . . . . . . Melee Attacks . | . . . . . . . . . . . . . . . . . Impact . | . . . . . . . . . . . . . . . . . Slashing . | . . . . . . . . . . . . . . . . . Piercing . | . . . . . . . . . . . . . . . . . Sneak Attacks . | . . . . . . . . . . . . . . . . . Combat Hostiles . | . . . . . . . . . . . . . . . . . Follow-up Attacks . | . . . . . . . . . . . . . . . . . Damage Inflicted 41894 | . 123 . . 613 1643 1677 1088 3423 2131 624 9655 467 . 963 4854 14633 Guns 20791 | . 108 . . 273 942 794 298 2566 2131 624 7749 435 . 722 3130 1019 Cannons 19120 | . . . . 283 408 883 790 756 . . 443 32 . 241 1670 13614 Explosions 1770 | . . . . 57 149 . . 101 . . 1463 . . . . . Melee . | . . . . . . . . . . . . . . . . . Ramming 213 | . 15 . . . 144 . . . . . . . . . 54 . Kinetic 5252 | . 80 . . 495 1143 1424 1047 1063 . . . . . . . . Thermal 34227 | . . . . 57 149 . . 2211 2131 624 8192 467 . 963 4800 14633 Explosive . | . . . . . . . . . . . . . . . . . Electromagnetic 2202 | . 28 . . 61 207 253 41 149 . . 1463 . . . . . Impact . | . . . . . . . . . . . . . . . . . Slashing . | . . . . . . . . . . . . . . . . . Piercing . | . . . . . . . . . . . . . . . . . Highest Corruption 24 | . 1 . . . 6 . . . 3 3 24 . . . 2 18 Average Corruption 7 | . 1 . . . 2 . . . 3 3 9 . . . 2 13 Corruption Purged . | . . . . . . . . . . . . . . . . . Corruption Blocked . | . . . . . . . . . . . . . . . . . Effects 68 | . . . . . 6 . . . 5 . 16 . . . 6 35 Message Errors 11 | . . . . . 1 . . . 1 . 2 . . . 1 6 Matter Fused 13 | . . . . . 3 . . . 2 . 2 . . . 1 5 Heat Flow Errors 5 | . . . . . 1 . . . . . . . . . . 4 Energy Discharges 4 | . . . . . . . . . 1 . 1 . . . 1 1 Parts Rejected 3 | . . . . . 1 . . . . . 1 . . . . 1 Parts Fused 2 | . . . . . . . . . . . 1 . . . . 1 Data Loss (minor) 5 | . . . . . . . . . 1 . . . . . 1 3 Alerts 2 | . . . . . . . . . . . 1 . . . . 1 Misdirections 3 | . . . . . . . . . . . 2 . . . . 1 Weapon Failures 20 | . . . . . . . . . . . 6 . . . 2 12 Overload Shots 338 | . . . . . . . . 42 45 9 135 12 . 12 56 27 Effects 12 | . . . . . . . . 1 1 . 3 1 . 1 1 4 Energy Bleed 5 | . . . . . . . . 1 . . 2 1 . . 1 . Heat Surge 7 | . . . . . . . . . 1 . 1 . . 1 . 4 Overflow Damage 582 | . . . . . 9 14 . 48 . . 147 . . . 5 359 Projectiles 377 | . . . . . . 14 . 2 . . . . . . 2 359 Explosions 193 | . . . . . . . . 46 . . 147 . . . . . Melee 12 | . . . . . 9 . . . . . . . . . 3 . Knockbacks 10 | . . . . 1 . 3 2 3 . . . . . . 1 . Impact 1 | . . . . . . . . . . . . . . . 1 . Kinetic 9 | . . . . 1 . 3 2 3 . . . . . . . . Secondary . | . . . . . . . . . . . . . . . . . Self-Inflicted Damage 389 | . 7 . . . 70 49 . . . . 240 . . . 23 . Shots 6 | . . . . . . 2 . . . . 4 . . . . . Rammed 11 | . 1 . . . 7 . . . . . . . . . 3 . Targets Rammed 11 | . 1 . . . 7 . . . . . . . . . 3 . Kicked . | . . . . . . . . . . . . . . . . . Crushed . | . . . . . . . . . . . . . . . . . Highest Temperature . | . . . . . . . . . . . . . . . . . Average Temperature . | . . . . . . . . . . . . . . . . . Received Heat Transfer 727 | . 36 6 9 29 43 61 39 113 21 4 239 15 . . 28 84 Siege Activations . | . . . . . . . . . . . . . . . . . Robots Corrupted 3 | . . . . . . . . . . . 2 . . . 1 . Combat Hostiles . | . . . . . . . . . . . . . . . . . Parts Fried 17 | . . . . . 2 . . . . . 12 . . . 3 . Impact Corruptions 2 | . . . . . 1 . . . . . . . . . 1 . Robots Melted 13 | . . . . . . . . . 2 1 2 . . . 2 6 Combat Hostiles 13 | . . . . . . . . . 2 1 2 . . . 2 6 Parts Melted 98 | . . . . . . . . 4 13 4 30 1 . 12 14 20 Heat Transferred 26340 | . . . . 50 100 . . 1900 2350 674 8231 561 . 946 4105 7423 Parts Sabotaged . | . . . . . . . . . . . . . . . . . Parts Stolen . | . . . . . . . . . . . . . . . . . Parts Stripped . | . . . . . . . . . . . . . . . . . Power Chain Reactions 3 | . . . . 1 1 . . 1 . . . . . . . . Alert | -11 -10 -9 -8 -7 -6 -5 -4 -4 -4 -4 -4 -3 -2 -2 -1 -1 ------- Run | Yrd Mat Mat Mat Fac Fac Fac Fac Ext Cet Arc Hub Res Res DSF Acc Com Peak Influence 1220 | . 100 90 101 150 373 482 113 468 425 177 1052 419 172 198 610 1220 Initial 298 | . . 30 26 33 59 133 58 40 196 40 42 121 172 99 89 298 Average 264 | . 38 47 45 64 169 204 57 314 251 139 347 246 172 156 299 429 Maximum Alert Level 4 | . . . . . 1 2 . 2 2 . 3 2 . . 2 4 Low Security (%) 46 | 100 100 100 100 100 56 62 100 28 33 100 48 30 100 100 36 17 Level 1 30 | . . . . . 43 18 . 33 58 . 13 67 . . 32 24 Level 2 19 | . . . . . . 19 . 38 7 . 13 2 . . 31 47 Level 3 3 | . . . . . . . . . . . 24 . . . . 9 Level 4 . | . . . . . . . . . . . . . . . . 1 Level 5 . | . . . . . . . . . . . . . . . . . High Security . | . . . . . . . . . . . . . . . . . Max Security . | . . . . . . . . . . . . . . . . . Squads Dispatched 18 | . . . . 2 1 2 2 . . . 6 . . 1 1 3 Investigation 2 | . . . . . . . . . . . 2 . . . . . Extermination 2 | . . . . . . . . . . . . . . . . 2 Reinforcement 10 | . . . . 2 1 1 1 . . . 3 . . 1 1 . Assault 1 | . . . . . . . . . . . . . . . . 1 Garrison 3 | . . . . . . 1 1 . . . 1 . . . . . Intercept . | . . . . . . . . . . . . . . . . . Searches Triggered . | . . . . . . . . . . . . . . . . . Construction Impeded . | . . . . . . . . . . . . . . . . . Haulers Reinforced . | . . . . . . . . . . . . . . . . . Active Scanning Responses . | . . . . . . . . . . . . . . . . . Cargo Convoy Interrupts . | . . . . . . . . . . . . . . . . . Stealth | -11 -10 -9 -8 -7 -6 -5 -4 -4 -4 -4 -4 -3 -2 -2 -1 -1 --------- Run | Yrd Mat Mat Mat Fac Fac Fac Fac Ext Cet Arc Hub Res Res DSF Acc Com Distress Signals 16 | . 1 . 2 . . . 2 1 1 . 1 . . . . 8 Communications Jammed . | . . . . . . . . . . . . . . . . . Distress Signals . | . . . . . . . . . . . . . . . . . Times Spotted 300 | . 5 6 10 14 14 13 8 14 10 1 48 18 3 3 23 110 Peak Tracking Total 84 | . 4 6 10 9 3 4 5 4 5 1 18 9 4 2 4 84 Tactical Retreats 10 | . . . . . . 1 1 . . . 1 3 . . 2 2 Traps | -11 -10 -9 -8 -7 -6 -5 -4 -4 -4 -4 -4 -3 -2 -2 -1 -1 ------- Run | Yrd Mat Mat Mat Fac Fac Fac Fac Ext Cet Arc Hub Res Res DSF Acc Com Traps Triggered 18 | . 1 . . . 4 . . 5 . . 4 . . 2 1 1 Indirectly 1 | . . . . . . . . . . . 1 . . . . . Trap Hack Attempts . | . . . . . . . . . . . . . . . . . Triggered . | . . . . . . . . . . . . . . . . . Disarmed . | . . . . . . . . . . . . . . . . . Reprogrammed . | . . . . . . . . . . . . . . . . . Reused . | . . . . . . . . . . . . . . . . . Traps Extracted . | . . . . . . . . . . . . . . . . . Installed . | . . . . . . . . . . . . . . . . . Triggered . | . . . . . . . . . . . . . . . . . Machines | -11 -10 -9 -8 -7 -6 -5 -4 -4 -4 -4 -4 -3 -2 -2 -1 -1 ---------- Run | Yrd Mat Mat Mat Fac Fac Fac Fac Ext Cet Arc Hub Res Res DSF Acc Com Machines Disabled 50 | . . . . . 2 6 . . 1 1 37 . . . 3 . Max in Single Turn 12 | . . . . . 1 5 . . 1 . 12 . . . 1 . Garrison Access 5 | . . . . . 1 1 1 . . . 1 1 . . . . Network Hub 4 | . . . . . . . . . . . 4 . . . . . Machines Repaired . | . . . . . . . . . . . . . . . . . Machines Dismantled . | . . . . . . . . . . . . . . . . . Machines Sabotaged . | . . . . . . . . . . . . . . . . . Overloaded Fab Kills . | . . . . . . . . . . . . . . . . . Hacking | -11 -10 -9 -8 -7 -6 -5 -4 -4 -4 -4 -4 -3 -2 -2 -1 -1 --------- Run | Yrd Mat Mat Mat Fac Fac Fac Fac Ext Cet Arc Hub Res Res DSF Acc Com Machines Accessed 31 | . 1 1 1 2 2 4 4 2 4 1 4 2 1 . 1 1 Terminals 23 | . 1 1 1 2 1 2 2 2 4 . 3 1 1 . 1 1 Fabricators . | . . . . . . . . . . . . . . . . . Repair Stations . | . . . . . . . . . . . . . . . . . Recycling Units 2 | . . . . . . 1 1 . . . . . . . . . Scanalyzers . | . . . . . . . . . . . . . . . . . Garrison Access 5 | . . . . . 1 1 1 . . . 1 1 . . . . Total Hacks 83 | . 1 1 1 4 6 12 7 2 10 7 23 2 1 . 1 5 Successful 83 | . 1 1 1 4 6 12 7 2 10 7 23 2 1 . 1 5 Failed . | . . . . . . . . . . . . . . . . . Catastrophic . | . . . . . . . . . . . . . . . . . Database Lockouts . | . . . . . . . . . . . . . . . . . Manual 59 | . 1 1 1 4 4 9 6 . 2 . 24 1 . . 1 5 Terminals 69 | . 1 1 1 4 5 10 5 2 10 . 22 1 1 . 1 5 Fabricators . | . . . . . . . . . . . . . . . . . Repair Stations . | . . . . . . . . . . . . . . . . . Recycling Units 2 | . . . . . . 1 1 . . . . . . . . . Scanalyzers . | . . . . . . . . . . . . . . . . . Garrison Access 5 | . . . . . 1 1 1 . . . 1 1 . . . . Terminal Hacks 76 | . 1 1 1 4 5 10 5 2 10 7 22 1 1 . 1 5 Record 17 | . . . . . 1 . . . 9 7 . . . . . . Part Schematic 1 | . . . . . . 1 . . . . . . . . . . Open Door 4 | . . . . . . . 1 2 1 . . . . . . . Open DSF 1 | . . . . . . . . . . . . . 1 . . . Level Access Points 7 | . 1 1 1 1 1 1 . . . . . 1 . . . . Branch Access Points 4 | . . . . . . 2 1 . . . . . . . 1 . Unreport Threat 39 | . . . . 3 2 6 3 . . . 21 . . . . 4 Recall Investigation 2 | . . . . . 1 . . . . . 1 . . . . . Zone Layout 1 | . . . . . . . . . . . . . . . . 1 Fabricator Hacks . | . . . . . . . . . . . . . . . . . Repair Station Hacks . | . . . . . . . . . . . . . . . . . Recycling Unit Hacks 2 | . . . . . . 1 1 . . . . . . . . . Retrieve Matter 2 | . . . . . . 1 1 . . . . . . . . . Scanalyzer . | . . . . . . . . . . . . . . . . . Garrison Access Hacks 5 | . . . . . 1 1 1 . . . 1 1 . . . . Seal Access 5 | . . . . . 1 1 1 . . . 1 1 . . . . Unauthorized Hacks . | . . . . . . . . . . . . . . . . . Terminals . | . . . . . . . . . . . . . . . . . Fabricators . | . . . . . . . . . . . . . . . . . Repair Stations . | . . . . . . . . . . . . . . . . . Recycling Units . | . . . . . . . . . . . . . . . . . Scanalyzers . | . . . . . . . . . . . . . . . . . Garrison Access . | . . . . . . . . . . . . . . . . . Data Cores Recovered . | . . . . . . . . . . . . . . . . . Used . | . . . . . . . . . . . . . . . . . Hacking Detections 5 | . 1 . . 1 1 . . . . . 2 . . . . . Full Trace Events 1 | . . . . . . . . . . . 1 . . . . . Feedback Events . | . . . . . . . . . . . . . . . . . Feedback Blocked . | . . . . . . . . . . . . . . . . . Robot Schematics Acquired . | . . . . . . . . . . . . . . . . . Robots Built . | . . . . . . . . . . . . . . . . . Authchips . | . . . . . . . . . . . . . . . . . Time . | . . . . . . . . . . . . . . . . . Total Robot Build Rating . | . . . . . . . . . . . . . . . . . Part Schematics Acquired 1 | . . . . . . 1 . . . . . . . . . . Parts Built . | . . . . . . . . . . . . . . . . . Authchips . | . . . . . . . . . . . . . . . . . Time . | . . . . . . . . . . . . . . . . . Total Part Build Rating . | . . . . . . . . . . . . . . . . . Parts Repaired . | . . . . . . . . . . . . . . . . . Time . | . . . . . . . . . . . . . . . . . Parts Recycled . | . . . . . . . . . . . . . . . . . Recycled Matter . | . . . . . . . . . . . . . . . . . Retrieved Matter . | . . . . . . . . . . . . . . . . . Retrieved Components . | . . . . . . . . . . . . . . . . . Parts Scanalyzed . | . . . . . . . . . . . . . . . . . Part Schematics Acquired . | . . . . . . . . . . . . . . . . . Parts Damaged . | . . . . . . . . . . . . . . . . . Bothacking | -11 -10 -9 -8 -7 -6 -5 -4 -4 -4 -4 -4 -3 -2 -2 -1 -1 ------------ Run | Yrd Mat Mat Mat Fac Fac Fac Fac Ext Cet Arc Hub Res Res DSF Acc Com Used RIF Installer . | . . . . . . . . . . . . . . . . . Robots Hacked . | . . . . . . . . . . . . . . . . . Non-combat . | . . . . . . . . . . . . . . . . . Combat . | . . . . . . . . . . . . . . . . . Robot Hacks Applied . | . . . . . . . . . . . . . . . . . Relay Couplers Released 2 | . . . . . . . . . . . 2 . . . . . Machine Destruction 2 | . . . . . . . . . . . 2 . . . . . Fabnet Peak Effective % . | . . . . . . . . . . . . . . . . . Robots Rewired . | . . . . . . . . . . . . . . . . . Allies Hacked . | . . . . . . . . . . . . . . . . . Hacks Repelled . | . . . . . . . . . . . . . . . . . Allies | -11 -10 -9 -8 -7 -6 -5 -4 -4 -4 -4 -4 -3 -2 -2 -1 -1 -------- Run | Yrd Mat Mat Mat Fac Fac Fac Fac Ext Cet Arc Hub Res Res DSF Acc Com Total Allies 9 | . . . . . . . . 4 5 . . . . . . . Largest Group 6 | . . . . . . . . 4 6 6 . . . . . . Highest-Rated Group 639 | . . . . . . . . 297 639 639 . . . . . . Highest-Rated Ally 159 | . . . . . . . . 159 159 159 . . . . . . Total Orders . | . . . . . . . . . . . . . . . . . Ally Attacks 17 | . . . . . . . . . 13 4 . . . . . . Total Damage 670 | . . . . . . . . . 376 294 . . . . . . Kills 3 | . . . . . . . . . 2 1 . . . . . . Allies Corrupted . | . . . . . . . . . . . . . . . . . Allies Melted . | . . . . . . . . . . . . . . . . . Intel | -11 -10 -9 -8 -7 -6 -5 -4 -4 -4 -4 -4 -3 -2 -2 -1 -1 ------- Run | Yrd Mat Mat Mat Fac Fac Fac Fac Ext Cet Arc Hub Res Res DSF Acc Com Robot Analysis Total . | . . . . . . . . . . . . . . . . . Derelict Logs Recovered . | . . . . . . . . . . . . . . . . . Drone Launches . | . . . . . . . . . . . . . . . . . Drone Recoveries . | . . . . . . . . . . . . . . . . . Exploration | -11 -10 -9 -8 -7 -6 -5 -4 -4 -4 -4 -4 -3 -2 -2 -1 -1 ------------- Run | Yrd Mat Mat Mat Fac Fac Fac Fac Ext Cet Arc Hub Res Res DSF Acc Com Turns Passed 3393 | 28 78 66 38 97 355 191 93 247 593 18 299 143 15 109 371 652 Spaces Moved 6130 | 47 119 175 164 318 917 436 158 421 426 46 676 495 51 237 512 932 Core 358 | 47 102 . . . 112 . . . . . . . . . 97 . Treads 14 | . . . . . . . . . . . . . . . 14 . Legs 20 | . . . . . . . . . . . . . . . 20 . Wheels 16 | . . . . . . . . . . . . . . . 16 . Hover 6 | . . . . . . . . . . . . . . . 6 . Flight 5716 | . 17 175 164 318 805 436 158 421 426 46 676 495 51 237 359 932 Fastest Speed 22 | 50 37 22 22 22 22 22 22 22 22 22 22 24 25 25 29 32 Average Speed 28 | 50 48 25 22 22 25 22 22 22 22 22 23 24 25 28 44 38 Slowest Speed 160 | 50 50 37 22 22 50 22 22 22 22 22 25 25 25 29 160 45 Overloaded Moves . | . . . . . . . . . . . . . . . . . Propulsion Burnouts . | . . . . . . . . . . . . . . . . . Robots Hopped 54 | . 1 2 2 2 9 . 1 6 . . 8 11 . . 2 10 Cave-ins Triggered . | . . . . . . . . . . . . . . . . . Exploration Rate (%) 41 | 3 41 29 22 14 28 14 10 92 97 99 88 25 2 91 17 40 Regions Visited 16 Branch Regions 5 Pre-discovered Areas . | . . . . . . . . . . . . . . . . . Known Exits Taken 15 | 1 1 1 1 1 1 1 1 1 1 1 1 1 1 . 1 . Unknown Exits Taken . | . . . . . . . . . . . . . . . . . Scrap Searched . | . . . . . . . . . . . . . . . . . Spaces Dug 35 | . . . . . 9 1 . 5 . . 5 4 . . 6 5 Terrain Destroyed 924 | . . . . 7 19 75 4 28 3 1 680 10 . 8 30 59 Melee . | . . . . . . . . . . . . . . . . . Projectile 186 | . . . . . 19 11 4 16 3 1 29 10 . 8 26 59 AOE 738 | . . . . 7 . 64 . 12 . . 651 . . . 4 . Terrain Rammed . | . . . . . . . . . . . . . . . . . Walls Destroyed . | . . . . . . . . . . . . . . . . . Machines Disabled . | . . . . . . . . . . . . . . . . . Actions | -11 -10 -9 -8 -7 -6 -5 -4 -4 -4 -4 -4 -3 -2 -2 -1 -1 --------- Run | Yrd Mat Mat Mat Fac Fac Fac Fac Ext Cet Arc Hub Res Res DSF Acc Com Total 7084 | 49 127 186 163 325 954 470 193 523 902 48 723 491 51 264 589 1026 Wait 576 | . . . . . . . 24 67 459 . . . . . 24 2 Move 6007 | 46 116 170 159 313 898 435 155 408 425 45 659 472 50 236 508 912 Hop 53 | . 1 2 2 2 9 . 1 6 . . 8 11 . . 1 10 Pick Up 33 | . . . 2 . . . . 4 1 . 2 . . 22 . 2 Fast Attach 44 | 3 5 14 . 3 4 5 . 1 1 . 1 1 . . 2 4 Attach 20 | . . . . . . . . 3 . . 1 . . . 9 7 Detach 7 | . . . . . 1 . . . . . . . . . 5 1 Swap 5 | . . . . . 1 . . . . . 1 1 1 . 1 . Drop 16 | . . . . . 1 2 . 4 1 . 1 . . . 6 1 Fire 312 | . 4 . . 7 33 28 13 30 15 3 50 6 . 6 30 87 Melee . | . . . . . . . . . . . . . . . . . Ram 10 | . 1 . . . 7 . . . . . . . . . 2 . Kick . | . . . . . . . . . . . . . . . . . Crush 1 | . . . . . . . . . . . . . . . 1 . Escape Stasis . | . . . . . . . . . . . . . . . . . Rewire . | . . . . . . . . . . . . . . . . . Trap . | . . . . . . . . . . . . . . . . . Miscellaneous . | . . . . . . . . . . . . . . . . . Route ------- -11/Scrapyard -10/Materials (discovered 4 exits: *Mat x3 / *Min) -9/Materials (discovered 4 exits: *Mat x3 / *Min) -8/Materials (discovered 3 exits: *Fac x3) -7/Factory (discovered 4 exits: *Fac x4) -6/Factory (discovered 4 exits: *Fac x4) -5/Factory (discovered 6 exits: *Fac x4 / *Upp x2) -4/Factory (discovered 5 exits: Upp x2 / *Ext x2 / Arm) -4/Extension (discovered 3 exits: *Res x2 / *Cet) -4/Cetus (discovered 3 exits: *Res x2 / *Arc) -4/Archives (discovered 3 exits: *Res / *Hub x2) -4/Hub_04(d) (discovered 4 exits: *Res x4) -3/Research (discovered 5 exits: *Res x3 / *Tes x2) -2/Research -2/DSF -1/Access -1/Command History --------- Turn | Location | Event 1 | -11/Scrapyard | Upgraded with Propulsion slot (x5) 1 | -11/Scrapyard | Upgraded with Utility slot (x12) 1 | -11/Scrapyard | Upgraded with Weapon slot (x5) 5 | -11/Scrapyard | Identified exit to Materials 5 | -11/Scrapyard | Discovered exit to Materials (range 13) 29 | -11/Scrapyard | Entered Materials 35 | -10/Materials | Identified exit to Mines 35 | -10/Materials | Discovered exit to Mines (range 13) 77 | -10/Materials | Identified exit to Materials 77 | -10/Materials | Discovered exit to Materials (range 27) 107 | -10/Materials | Entered another Materials area 109 | -9/Materials | Reached level 2 109 | -9/Materials | Reached level 3 148 | -9/Materials | Identified exit to Mines 148 | -9/Materials | Discovered exit to Mines (range 11) 150 | -9/Materials | Identified exit to Materials 173 | -9/Materials | Entered another Materials area 175 | -8/Materials | Reached level 4 175 | -8/Materials | Reached level 5 175 | -8/Materials | Reached level 6 177 | -8/Materials | Identified exit to Factory 211 | -8/Materials | Entered Factory 213 | -7/Factory | Reached level 7 213 | -7/Factory | Reached level 8 213 | -7/Factory | Reached level 9 224 | -7/Factory | Identified exit to Factory 308 | -7/Factory | Entered another Factory area 310 | -6/Factory | Reached level 10 310 | -6/Factory | Reached level 11 310 | -6/Factory | Reached level 12 332 | -6/Factory | Identified exit to Factory 405 | -6/Factory | Spotted B-75 Beast 432 | -6/Factory | Destroyed B-75 Beast 441 | -6/Factory | Reached level 13 620 | -6/Factory | Build established: Wizard-Scout 663 | -6/Factory | Entered another Factory area 665 | -5/Factory | Reached level 14 665 | -5/Factory | Reached level 15 691 | -5/Factory | Garrison activated, responded to threat 718 | -5/Factory | Identified exit to Upper Caves 739 | -5/Factory | Reached level 16 772 | -5/Factory | Spotted B-75 Beast 779 | -5/Factory | Identified exit to Factory 797 | -5/Factory | Destroyed B-75 Beast 854 | -5/Factory | Entered another Factory area 856 | -4/Factory | Reached level 17 856 | -4/Factory | Reached level 18 862 | -4/Factory | Spotted B-86 Titan 864 | -4/Factory | Spotted B-86 Titan 874 | -4/Factory | Identified exit to Upper Caves 874 | -4/Factory | Identified exit to Extension 874 | -4/Factory | Identified exit to Armory 915 | -4/Factory | Reached level 19 930 | -4/Factory | Garrison activated, responded to threat 947 | -4/Factory | Entered Extension 958 | -4/Extension | Rescued a captive Derelict 959 | -4/Extension | Rescued a captive Derelict 990 | -4/Extension | Reached level 20 1024 | -4/Extension | Spotted B-86 Titan 1044 | -4/Extension | Identified exit to Research 1044 | -4/Extension | Discovered exit to Research (range 20) 1046 | -4/Extension | Spotted B-86 Titan 1066 | -4/Extension | Destroyed B-86 Titan 1071 | -4/Extension | Destroyed B-86 Titan 1088 | -4/Extension | Rescued A7 1127 | -4/Extension | Destroyed 8 combat bots 1142 | -4/Extension | Identified exit to Cetus 1142 | -4/Extension | Discovered exit to Cetus (range 9) 1142 | -4/Extension | Discovered exit to Research (range 13) 1194 | -4/Extension | Entered Cetus 1194 | -4/Cetus | Accompanied by 1 ally (A7) 1194 | -4/Cetus | Spotted Cetus Guard 1194 | -4/Cetus | Spotted Cetus Guard 1194 | -4/Cetus | Spotted Cetus Guard 1194 | -4/Cetus | Spotted Cetus Guard 1196 | -4/Cetus | Reached level 21 1199 | -4/Cetus | Acquired a Cetus Manufacturing Module code from A7 1202 | -4/Cetus | Destroyed Cetus Guard 1206 | -4/Cetus | Destroyed Cetus Guard 1208 | -4/Cetus | Destroyed Cetus Guard 1211 | -4/Cetus | Destroyed Cetus Guard 1216 | -4/Cetus | Discovered exit to Research (range 37) 1230 | -4/Cetus | Started Cetus Manufacturing Module 1255 | -4/Cetus | Manufactured an Enhanced Grunt 1280 | -4/Cetus | Manufactured an Enhanced Grunt 1305 | -4/Cetus | Manufactured an Enhanced Grunt 1326 | -4/Cetus | Escorted A7 to Cetus Mainframe 1330 | -4/Cetus | Manufactured an Enhanced Grunt 1355 | -4/Cetus | Manufactured an Enhanced Grunt 1409 | -4/Cetus | Identified exit to Archives 1409 | -4/Cetus | Discovered exit to Archives (range 27) 1512 | -4/Cetus | Discovered exit to Research (range 38) 1512 | -4/Cetus | Spotted Cetus Guard 1512 | -4/Cetus | Spotted Cetus Guard 1534 | -4/Cetus | Spotted Cetus Guard 1534 | -4/Cetus | Spotted Cetus Guard 1540 | -4/Cetus | Destroyed Cetus Guard 1542 | -4/Cetus | Allies destroyed Cetus Guard 1542 | -4/Cetus | Destroyed Cetus Guard 1547 | -4/Cetus | Reached level 22 1547 | -4/Cetus | Destroyed Cetus Guard 1553 | -4/Cetus | Met Revision 17 1746 | -4/Cetus | Found a strange terminal 1787 | -4/Cetus | Entered Archives 1787 | -4/Archives | Accompanied by 6 allies (A7) 1790 | -4/Archives | Identified exit to Hub_04(d) 1790 | -4/Archives | Discovered exit to Hub_04(d) (range 24) 1792 | -4/Archives | Received a hacking code to weaken MAIN.C 1799 | -4/Archives | Discovered exit to Hub_04(d) (range 21) 1800 | -4/Archives | Discovered exit to Research (range 24) 1801 | -4/Archives | Unable to access archive contents 1805 | -4/Archives | Entered Hub_04(d) 1807 | -4/Hub_04(d) | Reached level 23 1813 | -4/Hub_04(d) | Spotted B-86 Titan 1822 | -4/Hub_04(d) | Discovered exit to Research (range 26) 1824 | -4/Hub_04(d) | Garrison activated, responded to threat 1838 | -4/Hub_04(d) | Reached level 24 1860 | -4/Hub_04(d) | Destroyed B-86 Titan 1884 | -4/Hub_04(d) | Discovered exit to Research (range 16) 1892 | -4/Hub_04(d) | Destroyed 18 combat bots 1895 | -4/Hub_04(d) | Discovered exit to Research (range 16) 1936 | -4/Hub_04(d) | Network Hub disabled 1959 | -4/Hub_04(d) | Network Hub disabled 1964 | -4/Hub_04(d) | Network Hub disabled 1967 | -4/Hub_04(d) | Spotted Lightning 1967 | -4/Hub_04(d) | Spotted Lightning 1970 | -4/Hub_04(d) | Spotted Lightning 1971 | -4/Hub_04(d) | Spotted Lightning 1971 | -4/Hub_04(d) | Spotted Lightning 1973 | -4/Hub_04(d) | Destroyed Lightning 1974 | -4/Hub_04(d) | Spotted Lightning 1976 | -4/Hub_04(d) | System corruption reached 10% 1984 | -4/Hub_04(d) | Destroyed Lightning 1992 | -4/Hub_04(d) | Destroyed Lightning 1999 | -4/Hub_04(d) | Destroyed Lightning 2004 | -4/Hub_04(d) | Destroyed Lightning 2007 | -4/Hub_04(d) | Destroyed Lightning 2007 | -4/Hub_04(d) | Reached level 25 2038 | -4/Hub_04(d) | Discovered exit to Research (range 14) 2048 | -4/Hub_04(d) | Destroyed 16 combat bots 2087 | -4/Hub_04(d) | Spotted Lightning 2087 | -4/Hub_04(d) | Spotted Lightning 2087 | -4/Hub_04(d) | Spotted Lightning 2088 | -4/Hub_04(d) | Network Hub disabled 2104 | -4/Hub_04(d) | Entered Research 2106 | -3/Research | Reached level 26 2152 | -3/Research | Identified exit to Research 2159 | -3/Research | Spotted B-86 Titan 2172 | -3/Research | Spotted B-86 Titan 2181 | -3/Research | Identified exit to Testing 2181 | -3/Research | Discovered exit to Testing (range 14) 2210 | -3/Research | Discovered exit to Testing (range 16) 2247 | -3/Research | Entered another Research area 2249 | -2/Research | Reached level 27 2249 | -2/Research | Reached level 28 2262 | -2/Research | Identified exit to DSF 2262 | -2/Research | Entered DSF 2273 | -2/DSF | Reached level 29 2288 | -2/DSF | Additional patrols routed to DSF 2312 | -2/DSF | Identified exit to Access 2312 | -2/DSF | Discovered exit to Access (range 15) 2371 | -2/DSF | Entered Access 2373 | -1/Access | Reached level 30 2503 | -1/Access | Spotted B-99 Colossus 2566 | -1/Access | Reached level 31 2566 | -1/Access | Destroyed B-99 Colossus 2598 | -1/Access | Identified exit to Command 2719 | -1/Access | Spotted B-99 Colossus 2733 | -1/Access | Spotted B-99 Colossus 2742 | -1/Access | Entered Command 2744 | -1/Command | Reached level 32 2744 | -1/Command | Reached level 33 2766 | -1/Command | Spotted B-99 Colossus 2796 | -1/Command | Spotted M Guard 2796 | -1/Command | Spotted M Guard 2796 | -1/Command | Spotted Combat Programmer 2796 | -1/Command | Spotted Combat Programmer 2831 | -1/Command | Destroyed Combat Programmer 2837 | -1/Command | Destroyed Combat Programmer 2840 | -1/Command | System corruption reached 10% 2857 | -1/Command | Destroyed M Guard 2857 | -1/Command | All MAIN.C guards destroyed 2895 | -1/Command | Destroyed 9 combat bots 2905 | -1/Command | Lost 9 parts (4n3u2w) 2973 | -1/Command | Spotted B-99 Colossus 2978 | -1/Command | Spotted Striker 2982 | -1/Command | Destroyed B-99 Colossus 2985 | -1/Command | Spotted Alpha 7 2985 | -1/Command | Reached level 34 2985 | -1/Command | Destroyed Striker 2986 | -1/Command | Spotted Executioner 2989 | -1/Command | Destroyed Executioner 2996 | -1/Command | Destroyed Alpha 7 3143 | -1/Command | Build established: Wizard-Executioner 3158 | -1/Command | Destroyed B-99 Colossus 3284 | -1/Command | First assault squad dispatched 3394 | -1/Command | Self-destructed Last Messages --------------- 03389_ X-87 Electro springs to life. 03389_ C-30 ARC springs to life. 03389_ C-30 ARC bursts open, deploying its payload. 03389_ H-88 Terminator unfolds itself. 03389_ Penetrated by Slug. 03389_ D-83 Annihilator springs to life. 03389_ C-30 ARC springs to life. 03389_ C-30 ARC bursts open, deploying its payload. 03389_ S-43 Plague unfolds itself. 03389_ I-47 Archangel springs to life. 03389_ I-47 Archangel distress signal alerts nearby ally. 03389_ X-87 Electro springs to life. 03389_ D-83 Annihilator springs to life. 03389_ C-30 ARC springs to life. 03389_ C-30 ARC bursts open, deploying its payload. 03389_ H-88 Terminator unfolds itself. 03389_ I-47 Archangel springs to life. 03389_ I-47 Archangel distress signal alerts nearby ally. 03391_ S-43 Plague destroyed. 03393_ Slug penetrates Wall. Map ----- +----------------------------------------------------+ | ????????????????????????# % = /=%= = | | ????????????????????????# [!*%%%% | | ????????????????????????# !!%%|! [% | | ????????????????????????# # # !=[==## "## | | ????????????????????????####### ##[ !!% "## | | ??????????????????????????# ## ####%#[%" "###"## | | ?????????????????????????# ## # % ####### #? | | ?????????????????????????# # #?????###? | | ?????????????????????????## # # #????????? | | ??????????????????????????## # # ##????????? | | ???????????????????????????##### ###????????? | | ???????????????????????????????# # #????????? | | ???????????????????????????????# ## ###????????? | | ??????????????????????????????## ## #??????????? | | ???????????????????????????????# ## #??????????? | | ???????????????????????????????# ####??????????# | | ???????????????????????????????# #?????????????# | | ???????????????????????????????# #?????????????# | | ???????????????????????????????# #?????????????# | | ???????????????????????????????# #?????????????# | | ???????????????????????????????# #?????????????# | | ????????????????????????########"#"######????????# | | ????????????????????????# h #????????# | | ????????????????????????# #### #"# #### #????????# | | ????????????????????????#h#??# # # #?????????????# | | ????????????????????????#@#??# # #?#?????????????? | | ???????????????????????#;d#??###"#???????????????? | | ??????????????????????#xdsi???? " ???????????????? | | ??????????????????????# ss???? # ???????????????? | | ??????????????????????#xdsx#??? ? ???????????????? | | ??????????????????????#x ii#??? ? ???????????????? | | ??????????????????????# xi#??? ? ???????????????? | | ??????????????????????#dpii#??? ? ???????????????? | | ??????????????????????## d##???#?#???????????????? | | ???????????????????????#d%#??????????????????????? | | ???????????????????????#p #??????????????????????? | | ???????????????????????# #??????????????????????? | | ???????????????????????#x #??????????????????????? | | ???????????????????????#h #??????????????????????? | | ???????????????????????# h#??????????????????????? | | ???????????????????????#++#??????????????????????? | | ?????????????????????????????????????????????????? | | ?????????????????????????????????????????????????? | | ?????????????????????????????????????????????????? | | ?????????????????????????????????????????????????? | | ?????????????????????????????????????????????????? | | ?????????????????????????????????????????????????? | | ?????????????????????????????????????????????????? | | ?????????????????????????????????????????????????? | | ?????????????????????????????????????????????????? | +----------------------------------------------------+ Best States ------------- Heat Dissipation 997 Energy Generation 1518 Energy Capacity 10200 Matter Stores 3280 Matter Capacity 4600 Sight Range 66 Robot Scan Range 132 Terrain Scan Range 16 Terrain Scan Density 7910 Cloak Strength 2 Armor Coverage 1050 Resistance: KI 55 Resistance: TH 55 Resistance: EX 55 Resistance: EM 35 Resistance: I 35 Resistance: S 35 Resistance: P 35 Weapon Cycling 30 Evasion (%) 65 Core Analysis 6 Armor Integrity Analysis 40 Recoil Reduction 2 Offensive Hacking 1225 Defensive Hacking 1055 Authchip Count 1 Item Schematics ----------------- Biometal Leg | -5/Factory | Hacked Robot Schematics ------------------ None Fabricated ------------ Nothing Alien Tech Used ----------------- None Achievements -------------- Universal Adapter Challenges ------------ None RPGLIKE | -11 -10 -9 -8 -7 -6 -5 -4 -4 -4 -4 -4 -3 -2 -2 -1 -1 --------- Run | Yrd Mat Mat Mat Fac Fac Fac Fac Ext Cet Arc Hub Res Res DSF Acc Com Levels Raised 33 | . . 2 3 3 4 3 3 1 2 . 3 1 2 1 2 3 XP Earned 56267 | 6000 350 3292 4279 4925 5964 4597 3830 2510 2161 1047 3490 2283 2000 1523 3368 4648 XP Spent -971183785 | -971183785 . . . . . . . . . . . . . . . . Upgrades 2140 | 2140 . . . . . . . . . . . . . . . . Propulsion Slot 5 | 5 . . . . . . . . . . . . . . . . Utility Slot 12 | 12 . . . . . . . . . . . . . . . . Weapon Slot 5 | 5 . . . . . . . . . . . . . . . . Core Integrity 388 | 388 . . . . . . . . . . . . . . . . Heat Dissipation 162 | 162 . . . . . . . . . . . . . . . . Energy Generation 299 | 299 . . . . . . . . . . . . . . . . Energy Storage 198 | 198 . . . . . . . . . . . . . . . . Matter Storage 86 | 86 . . . . . . . . . . . . . . . . Mass Support 59 | 59 . . . . . . . . . . . . . . . . Inventory Capacity 107 | 107 . . . . . . . . . . . . . . . . Sight Range 50 | 50 . . . . . . . . . . . . . . . . Sensor Range 66 | 66 . . . . . . . . . . . . . . . . Terrain Scan Density 79 | 79 . . . . . . . . . . . . . . . . Ranged Accuracy 88 | 88 . . . . . . . . . . . . . . . . Melee Accuracy 60 | 60 . . . . . . . . . . . . . . . . Hack Attack % 241 | 241 . . . . . . . . . . . . . . . . Hack Defense % 211 | 211 . . . . . . . . . . . . . . . . KI Resistance % 4 | 4 . . . . . . . . . . . . . . . . TH Resistance % 4 | 4 . . . . . . . . . . . . . . . . EX Resistance % 4 | 4 . . . . . . . . . . . . . . . . KI Damage % 4 | 4 . . . . . . . . . . . . . . . . TH Damage % 4 | 4 . . . . . . . . . . . . . . . . EX Damage % 4 | 4 . . . . . . . . . . . . . . . . Protomatter Created 4609 | . . . . 83 390 228 60 364 384 286 1128 77 . . 371 1238 Protomatter Decayed 3479 | . . . . . 322 101 . 269 304 95 913 77 . . 371 1027 Game ------ Seed ChipSubdwellerLance Manual? 0 Play Time 01:05:28 Cumulative 52.3 hours Start 2024.08.13 @ 22:15:07 End 2024.08.15 @ 20:14:42 Sessions 2 Manual Loads 0 Difficulty Explorer Special Mode Winter2019/RPGLIKE Game No. 46 Rogue 0 Adventurer 0 Explorer 46 Win Type - Total 10 Types 4/2/2/1/0/0/1/0/0 Lore% 33 Gallery% 56 Achievement% 64 Wizard Run 0 Options --------- Layout 0 ASCII 0 Keyboard 0 Movement Mouse Keybinds 0 Fullscreen 2 Font 18/SmallcapsGlow Map View 38x25 Zoom Use 69% Tactical HUD 1 Map Filters NONE Filters NONE Steam 1 RUN: 3f5e67d0-f1a1-4cbc-b88c-2b267e34a0f3